bitfinex/quotes_SOLUSD_20240714
["timestamp","ask_amount","ask_price","bid_price","bid_amount"]
[1720917407874,0.2,144.99,144.95,45.0]
[1720917408043,0.2,144.99,144.95,51.8988]
[1720917408250,0.2,144.99,144.96,1.37937125]
[1720917409842,0.2,144.99,144.97,6.8978]
[1720917410062,0.2,144.99,144.98,46.37917505]
[1720917411144,0.2,144.99,144.97,45.0]
[1720917411347,0.2,144.99,144.97,46.37860694]
[1720917411559,0.2,144.99,144.98,45.0]
[1720917411867,0.2,144.99,144.97,1.37860694]
[1720917412266,0.2,144.99,144.98,1.37918185]
[1720917412467,0.2,144.99,144.98,8.27668185]
[1720917412647,0.2,144.99,144.98,53.27668185]
[1720917415068,0.2,144.99,144.98,46.37918185]
[1720917415284,0.2,144.99,144.98,1.37918185]
[1720917415648,0.2,144.99,144.92,10.04844147]
[1720917415854,0.2,144.99,144.95,6.8987]
[1720917416185,0.2,144.99,144.96,1.37918787]
[1720917416483,0.2,144.99,144.96,8.27748787]
[1720917417170,0.2,144.99,144.97,1.37918782]
[1720917417370,0.2,144.99,144.97,0.8206986]
[1720917417551,0.2,144.99,144.96,6.8983]
[1720917417751,0.2,144.99,144.97,0.81769514]
[1720917418064,0.2,144.99,144.97,53.27708929]
[1720917418259,6.2443,144.98,144.84,6.1293]
[1720917418575,16.1658,144.96,144.9,6.9009]
[1720917418877,16.1658,144.96,144.91,1.37974385]
[1720917419077,1.72469588,144.95,144.91,1.37974385]
[1720917419267,1.72469588,144.95,144.89,1.37994331]
[1720917419565,1.72469588,144.95,144.9,1.37994185]
[1720917419765,1.72492833,144.95,144.9,1.37994185]
[1720917419969,17.89072833,144.96,144.9,1.37994185]
[1720917420556,1.72481282,144.95,144.9,1.37994185]
[1720917420759,1.72481282,144.95,144.88,1.37994659]
[1720917420955,1.72481282,144.95,144.87,6.9026]
[1720917421378,1.72481282,144.95,144.88,6.9022]
[1720917422064,1.72481282,144.95,144.89,46.37994544]
[1720917423275,16.1658,144.96,144.89,46.37994544]
[1720917423574,16.1658,144.96,144.89,67.22994544]
[1720917424152,16.1658,144.96,144.93,6.8997]
[1720917424351,6.2443,144.98,144.95,6.8989]
[1720917424552,6.2443,144.98,144.96,46.37943803]
[1720917424774,6.2443,144.98,144.89,65.85]
[1720917424775,6.2443,144.98,144.97,1.37940622]
[1720917424975,6.2443,144.98,144.95,1.3794392]
[1720917425166,0.2,144.99,144.96,1.37926181]
[1720917425474,0.2,144.99,144.98,6.8975]
[1720917425666,0.2,144.99,144.98,51.8975]
[1720917425862,0.2,144.99,144.98,45.0]
[1720917427690,0.2,144.99,144.96,8.27717191]
[1720917427850,22.4101,144.98,144.86,6.9028]
[1720917428055,1.72494253,144.97,144.8,10.0]
[1720917428468,1.72494253,144.97,144.87,6.9026]
[1720917428664,21.72494253,144.97,144.87,6.9026]
[1720917429164,21.72494253,144.97,144.89,6.9016]
[1720917429476,21.72494253,144.97,144.88,6.9021]
[1720917429676,21.72494253,144.97,144.87,6.9026]
[1720917429865,21.72494253,144.97,144.81,38.50222145]
[1720917430072,25.5,144.96,144.79,26.9793]
[1720917430266,25.5,144.96,144.78,20.85]
[1720917430267,25.5,144.93,144.78,20.85]
[1720917430472,16.1658,144.91,144.78,20.85]
[1720917430775,1.72566099,144.9,144.81,6.9051]
[1720917430978,1.72578627,144.89,144.8,6.906]
[1720917431463,1.72578627,144.89,144.79,6.9064]
[1720917431863,6.2443,144.88,144.73,34.19686332]
[1720917432165,1.72612309,144.87,144.73,34.19686332]
[1720917432372,1.72612309,144.87,144.73,8.69686332]
[1720917432682,1.72612309,144.87,144.74,20.85]
[1720917433263,47.22612309,144.87,144.74,20.85]
[1720917433775,47.22612309,144.87,144.78,6.907]
[1720917433971,47.22612309,144.87,144.74,20.85]
[1720917433972,47.22612309,144.87,144.79,6.9065]
[1720917434282,21.72612309,144.87,144.8,6.906]
[1720917434656,21.72612309,144.87,144.79,6.9065]
[1720917434860,21.72612309,144.87,144.77,6.9074]
[1720917435080,1.72612309,144.87,144.77,6.9074]
[1720917435257,21.72612309,144.87,144.78,6.907]
[1720917436680,6.2443,144.88,144.83,6.9044]
[1720917436866,6.2443,144.88,144.84,1.37974909]
[1720917437367,6.2443,144.88,144.81,6.9052]
[1720917438162,1.72568123,144.87,144.75,20.85]
[1720917438381,1.72568123,144.87,144.78,6.9066]
[1720917438580,6.2443,144.88,144.75,20.85]
[1720917439084,6.2443,144.88,144.81,6.9052]
[1720917439281,1.72578441,144.87,144.79,6.9061]
[1720917439583,1.72578441,144.87,144.75,20.85]
[1720917439584,1.72578441,144.87,144.78,6.9069]
[1720917440167,1.72578441,144.87,144.79,6.9064]
[1720917440871,1.72578441,144.87,144.78,6.9065]
[1720917441068,1.72578441,144.87,144.72,20.85]
[1720917441069,1.72578441,144.87,144.79,6.9063]
[1720917442065,1.72621979,144.87,144.81,6.9054]
[1720917442267,1.72621979,144.87,144.82,0.69683033]
[1720917442498,1.72621979,144.87,144.8,6.906]
[1720917442711,1.72621979,144.87,144.81,0.69903092]
[1720917442989,1.72621979,144.87,144.81,7.60443092]
[1720917443278,1.72621979,144.87,144.81,0.69903092]
[1720917443483,1.72621979,144.87,144.73,0.70021904]
[1720917443686,1.72621979,144.87,144.74,0.70017066]
[1720917443998,1.72621979,144.87,144.72,20.85]
[1720917444160,15.9956,144.86,144.72,20.85]
[1720917444368,1.72630692,144.85,144.72,20.85]
[1720917444966,1.72630754,144.85,144.8,6.906]
[1720917445168,15.9956,144.86,144.81,7.90799251]
[1720917445363,1.72597353,144.85,144.81,1.00249251]
[1720917445677,1.72597353,144.85,144.78,6.9068]
[1720917446002,1.72597353,144.85,144.77,6.9074]
[1720917446364,1.72597353,144.85,144.72,20.85]
[1720917446569,6.5447,144.84,144.72,20.85]
[1720917446779,6.5447,144.84,144.75,6.9081]
[1720917446780,1.72649727,144.83,144.75,6.9081]
[1720917446967,6.5447,144.84,144.75,6.9081]
[1720917446968,1.72650406,144.82,144.75,6.9081]
[1720917447168,1.72650406,144.83,144.69,20.85]
[1720917447389,15.9956,144.81,144.73,6.9092]
[1720917447572,1.72680968,144.8,144.73,6.9092]
[1720917447786,1.72680968,144.8,144.74,27.7588]
[1720917447968,15.9956,144.81,144.68,25.5]
[1720917448168,15.9956,144.81,144.76,6.9078]
[1720917448368,15.9956,144.81,144.77,1.38120822]
[1720917448593,15.9956,144.81,144.68,25.5]
[1720917448594,15.9956,144.81,144.75,6.9083]
[1720917448899,15.9956,144.81,144.76,1.04094378]
[1720917449297,1.72650357,144.8,144.74,6.9086]
[1720917449506,15.9956,144.81,144.71,6.9099]
[1720917449507,1.72676757,144.79,144.71,6.9099]
[1720917449688,1.72676757,144.79,144.66,259.5]
[1720917449689,6.5447,144.78,144.66,259.5]
[1720917449885,6.5447,144.78,144.65,25.5]
[1720917450198,1.72695664,144.77,144.7,6.9107]
[1720917450397,1.72695664,144.77,144.69,6.9112]
[1720917450582,1.72695664,144.77,144.65,20.85]
[1720917451012,6.5447,144.78,144.65,20.85]
[1720917451217,1.72702437,144.77,144.65,20.85]
[1720917451396,6.5447,144.78,144.72,6.9098]
[1720917451598,6.5447,144.78,144.73,1.37937038]
[1720917451795,6.5447,144.78,144.75,6.9081]
[1720917451998,6.5447,144.78,144.76,8.28811628]
[1720917452333,6.5447,144.78,144.77,1.38131389]
[1720917452507,6.5447,144.78,144.77,8.28881389]
[1720917452825,15.9956,144.81,144.77,6.9075]
[1720917453031,15.9956,144.81,144.78,1.38047681]
[1720917453195,15.9956,144.81,144.76,6.9078]
[1720917453396,15.9956,144.81,144.77,1.38075678]
[1720917453595,15.9956,144.81,144.75,6.9083]
[1720917453797,15.9956,144.81,144.69,20.85]
[1720917454107,15.9956,144.81,144.74,6.9085]
[1720917454436,15.9956,144.81,144.75,6.9083]
[1720917455338,15.9956,144.81,144.76,6.9079]
[1720917455658,15.9956,144.81,144.77,0.77505482]
[1720917455820,15.9956,144.81,144.7,0.77505482]
[1720917456021,15.9956,144.81,144.71,1.12506039]
[1720917456536,15.9956,144.81,144.78,6.9066]
[1720917456755,15.9956,144.81,144.79,1.38108837]
[1720917456917,15.9956,144.81,144.77,1.38108901]
[1720917457118,15.9956,144.81,144.77,8.28838901]
[1720917457334,15.9956,144.81,144.78,1.38108943]
[1720917457947,15.9956,144.81,144.75,6.9079]
[1720917459252,17.72211381,144.81,144.74,6.9089]
[1720917459415,17.72211381,144.81,144.73,6.9093]
[1720917459919,17.72211381,144.81,144.71,6.9102]
[1720917460139,17.72211381,144.81,144.72,6.9097]
[1720917460844,17.72211381,144.81,144.73,6.9092]
[1720917461039,6.0913,144.8,144.72,6.9097]
[1720917461241,1.72700573,144.79,144.72,6.9097]
[1720917461542,47.3848,144.78,144.61,0.2]
[1720917461719,6.0913,144.76,144.61,0.2]
[1720917461919,15.7935,144.74,144.61,0.2]
[1720917462133,6.0913,144.72,144.61,0.2]
[1720917462333,1.72797852,144.71,144.61,0.2]
[1720917462638,1.72797861,144.7,144.63,6.9137]
[1720917463223,1.72797861,144.7,144.62,6.9145]
[1720917463438,1.72797861,144.7,144.61,0.2]
[1720917463641,1.72797861,144.7,144.61,7.1151]
[1720917465533,15.7935,144.69,144.61,7.1151]
[1720917465734,1.72829179,144.68,144.61,7.1151]
[1720917465942,1.72829392,144.67,144.61,7.1151]
[1720917466334,6.0913,144.66,144.61,0.2]
[1720917466521,1.72842074,144.65,144.61,0.2]
[1720917467128,17.5220577,144.64,144.51,0.2]
[1720917467447,17.5220577,144.64,144.51,7.1159]
[1720917467652,6.0913,144.63,144.51,0.2]
[1720917467842,21.7290284,144.62,144.51,0.2]
[1720917469937,6.0913,144.63,144.52,0.63400526]
[1720917470858,6.0913,144.63,144.53,20.85]
[1720917471055,6.0913,144.63,144.54,0.66518728]
[1720917471273,6.0913,144.63,144.55,0.66514126]
[1720917472074,6.0913,144.63,144.56,1.21899636]
[1720917472953,6.0913,144.63,144.54,1.21899636]
[1720917473172,6.0913,144.63,144.55,1.38273855]
[1720917478245,7.81983476,144.63,144.52,20.85]
[1720917478564,6.0913,144.63,144.52,20.85]
[1720917478961,6.0913,144.63,144.53,0.83699778]
[1720917479565,1.72867728,144.68,144.57,46.35]
[1720917479566,6.3765,144.67,144.57,46.35]
[1720917479766,6.3765,144.67,144.58,1.38233478]
[1720917480642,6.3765,144.67,144.59,20.85]
[1720917480858,6.3765,144.67,144.6,1.3822914]
[1720917481040,6.3765,144.67,144.61,1.38229107]
[1720917481867,21.7937,144.75,144.61,1.38229107]
[1720917482040,21.7937,144.75,144.61,22.23229107]
[1720917482041,1.72755621,144.74,144.61,22.23229107]
[1720917482246,21.7937,144.75,144.64,20.85]
[1720917482459,21.7937,144.75,144.65,1.38162701]
[1720917482860,6.3765,144.75,144.66,46.35]
[1720917483050,6.3765,144.75,144.67,1.38147164]
[1720917483364,6.3765,144.75,144.68,1.38137641]
[1720917484963,21.7937,144.79,144.68,1.38137641]
[1720917486865,6.3765,144.79,144.7,20.85]
[1720917487171,6.3765,144.79,144.71,1.38108423]
[1720917489162,6.3765,144.82,144.71,1.38108423]
[1720917489350,6.3765,144.82,144.73,20.85]
[1720917489552,6.3765,144.82,144.74,1.38094252]
[1720917490554,6.3765,144.82,144.75,1.38091033]
[1720917491556,6.3765,144.82,144.74,1.38090481]
[1720917492457,8.10270574,144.82,144.75,1.38096459]
[1720917492663,8.10270574,144.82,144.72,20.85]
[1720917492969,8.10270574,144.82,144.73,1.38124948]
[1720917493951,8.10270574,144.82,144.71,1.38125148]
[1720917495278,8.10270574,144.82,144.71,22.23125148]
[1720917495453,8.10270574,144.82,144.67,15.53106113]
[1720917495649,6.3765,144.81,144.67,15.53106113]
[1720917495849,1.72689445,144.8,144.67,15.53106113]
[1720917496154,1.72704121,144.79,144.68,1.38007385]
[1720917496561,15.3674,144.78,144.68,1.38007385]
[1720917496767,1.72714908,144.77,144.68,1.38007385]
[1720917497167,1.72714908,144.77,144.67,1.38171687]
[1720917497367,1.72714908,144.77,144.68,1.38171646]
[1720917497868,8.1510464,144.76,144.68,1.38171646]
[1720917498071,8.1510464,144.76,144.63,20.85]
[1720917498274,8.1510464,144.76,144.64,1.38207321]
[1720917498455,6.4239,144.74,144.64,1.38207321]
[1720917498777,1.72790298,144.73,144.61,1.38232238]
[1720917500698,1.72790298,144.73,144.61,22.23232238]
[1720917500876,1.72790298,144.73,144.62,65.85]
[1720917501175,1.72790298,144.73,144.63,1.3820806]
[1720917501367,8.15150393,144.74,144.63,1.3820806]
[1720917502279,1.72750529,144.73,144.63,1.3820806]
[1720917502487,1.72750529,144.73,144.62,45.0]
[1720917502669,1.72750529,144.73,144.61,45.0]
[1720917503206,1.72750529,144.73,144.61,65.85]
[1720917503884,6.4239,144.72,144.61,20.85]
[1720917504190,15.3674,144.7,144.58,20.85]
[1720917504381,1.72795301,144.69,144.58,20.85]
[1720917504978,15.3674,144.7,144.58,20.85]
[1720917505179,15.3674,144.7,144.6,20.85]
[1720917505361,15.3674,144.7,144.61,1.37116767]
[1720917505856,15.3674,144.7,144.62,20.85]
[1720917506060,15.3674,144.7,144.64,20.85]
[1720917506260,15.3674,144.7,144.65,46.37172346]
[1720917506468,6.4239,144.72,144.65,46.37172346]
[1720917507191,6.4239,144.72,144.66,1.37162877]
[1720917509895,1.72751643,144.71,144.65,45.0]
[1720917510192,1.72751643,144.71,144.6,20.85]
[1720917511987,1.72751643,144.71,144.59,20.85]
[1720917512197,1.72751643,144.71,144.6,20.85]
[1720917512701,15.3674,144.7,144.56,20.85]
[1720917512884,6.4239,144.68,144.56,20.85]
[1720917513088,1.72831458,144.67,144.56,20.85]
[1720917513784,6.4239,144.68,144.56,28.55009968]
[1720917513991,6.4239,144.68,144.58,20.85]
[1720917514305,6.4239,144.68,144.59,1.35193666]
[1720917514475,6.4239,144.68,144.59,67.20193666]
[1720917515902,6.4239,144.68,144.59,1.35193666]
[1720917516075,6.4239,144.68,144.58,22.23251279]
[1720917516276,6.4239,144.68,144.6,20.85]
[1720917516481,16.0075,144.74,144.62,46.35]
[1720917516687,22.4077,144.74,144.63,1.38179612]
[1720917516900,22.4077,144.74,144.64,20.85]
[1720917517090,22.4077,144.74,144.66,20.85]
[1720917517289,22.4077,144.74,144.67,67.23172206]
[1720917517598,22.4077,144.74,144.68,46.38172206]
[1720917517785,22.4077,144.74,144.68,67.23172206]
[1720917519081,22.4077,144.74,144.68,45.0]
[1720917519286,22.4077,144.74,144.67,45.0]
[1720917519492,22.4077,144.74,144.67,65.85]
[1720917519793,22.4077,144.74,144.67,45.0]
[1720917520108,1.72731878,144.73,144.6,28.68096145]
[1720917520401,1.72731878,144.73,144.56,294.43116414]
[1720917520402,6.4002,144.72,144.56,294.43116414]
[1720917520618,1.7279682,144.71,144.56,294.43116414]
[1720917520773,16.0075,144.69,144.56,294.43116414]
[1720917520981,1.72798496,144.68,144.56,268.93116414]
[1720917521308,6.4002,144.67,144.56,289.78116414]
[1720917522397,6.4002,144.67,144.56,30.28116414]
[1720917523181,1.72816468,144.66,144.56,28.68096145]
[1720917523787,6.4002,144.67,144.56,28.68096145]
[1720917524202,6.4002,144.67,144.57,1.38262555]
[1720917524415,6.4002,144.67,144.58,20.85]
[1720917524599,6.4002,144.67,144.59,1.38240514]
[1720917526696,6.4002,144.67,144.6,1.38228638]
[1720917526912,6.4002,144.67,144.61,1.38247452]
[1720917527281,6.4002,144.67,144.54,25.5]
[1720917527282,1.72808634,144.66,144.54,25.5]
[1720917527583,1.72808634,144.66,144.53,58.11461444]
[1720917528304,22.4077,144.65,144.53,39.55317795]
[1720917528493,22.4077,144.63,144.51,0.2]
[1720917528696,1.72907485,144.62,144.51,0.2]
[1720917529927,30.0,144.6,144.51,0.2]
[1720917531214,1.72910197,144.59,144.51,0.2]
[1720917531520,1.72917684,144.62,144.51,0.2]
[1720917531690,1.72920435,144.62,144.51,0.2]
[1720917533719,22.4077,144.61,144.51,0.2]
[1720917533915,6.4002,144.59,144.51,0.2]
[1720917534090,1.72952783,144.6,144.51,0.2]
[1720917534091,6.4002,144.56,144.51,0.2]
[1720917534293,1.72981317,144.55,144.51,0.2]
[1720917534634,6.4002,144.56,144.46,0.8347028]
[1720917534635,1.72986128,144.54,144.47,1.38388902]
[1720917535103,8.13014796,144.56,144.46,0.8347028]
[1720917536507,8.13014796,144.56,144.47,0.4802956]
[1720917536710,8.13014796,144.56,144.47,1.38389514]
[1720917538309,6.4002,144.56,144.47,1.38389514]
[1720917538496,6.4002,144.56,144.48,20.85]
[1720917538703,6.4002,144.56,144.49,67.23342905]
[1720917539595,6.4002,144.56,144.49,65.85]
[1720917540819,6.4002,144.56,144.5,0.45712923]
[1720917540998,6.4002,144.56,144.5,1.38344025]
[1720917542491,6.4002,144.56,144.49,91.35]
[1720917542690,6.4002,144.56,144.5,1.38339003]
[1720917543093,8.12957113,144.56,144.5,1.38339003]
[1720917543312,8.12957113,144.56,144.46,21.6847028]
[1720917544015,8.12957113,144.56,144.46,0.8347028]
[1720917545913,1.72937113,144.56,144.46,0.8347028]
[1720917546108,16.3742,144.54,144.46,0.8347028]
[1720917546309,6.5692,144.52,144.46,0.8347028]
[1720917546515,8.29954118,144.52,144.46,0.8347028]
[1720917547400,1.73013781,144.51,144.46,0.8347028]
[1720917550613,1.73050677,144.51,144.46,0.8347028]
[1720917550815,8.29970677,144.52,144.46,0.8347028]
[1720917551207,1.73015099,144.51,144.46,0.8347028]
[1720917553703,8.29947303,144.52,144.46,0.8347028]
[1720917553902,6.5692,144.52,144.46,0.8347028]
[1720917554301,6.5692,144.52,144.47,1.38378252]
[1720917554630,16.3742,144.54,144.47,1.38378252]
[1720917554922,16.3742,144.54,144.48,1.38364331]
[1720917555444,16.3742,144.54,144.46,66.6847028]
[1720917555605,16.3742,144.54,144.46,45.8347028]
[1720917555931,18.10375435,144.54,144.46,0.8347028]
[1720917559715,6.2555,144.53,144.46,0.8347028]
[1720917559920,21.73031867,144.52,144.46,0.8347028]
[1720917560107,1.73032017,144.51,144.46,0.8347028]
[1720917561638,1.73031777,144.52,144.46,0.8347028]
[1720917562909,1.73010525,144.51,144.46,0.8347028]
[1720917564835,1.73042554,144.52,144.46,0.8347028]
[1720917565820,7.98560244,144.53,144.46,0.8347028]
[1720917566141,6.2555,144.53,144.46,0.8347028]
[1720917566323,6.2555,144.53,144.47,1.38391299]
[1720917567742,7.98531222,144.53,144.46,0.8347028]
[1720917571616,20.0,144.52,144.46,0.8347028]
[1720917571816,1.73032477,144.51,144.46,0.8347028]
[1720917573466,7.24755783,144.6,144.51,20.83]
[1720917573611,15.3759,144.68,144.55,20.83]
[1720917573816,0.50352426,144.67,144.56,23.22715774]
[1720917574014,0.50352426,144.67,144.61,6.915]
[1720917574244,6.2555,144.66,144.52,12.06583685]
[1720917574443,0.50352426,144.65,144.53,45.0]
[1720917574653,0.50352426,144.64,144.53,45.0]
[1720917575352,0.50352426,144.64,144.56,6.9173]
[1720917575556,0.50352426,144.64,144.57,45.0]
[1720917576420,0.50352426,144.64,144.57,51.9169]
[1720917576618,0.50352426,144.64,144.57,45.0]
[1720917577042,0.50352426,144.64,144.61,6.9148]
[1720917577241,0.50352426,144.64,144.57,45.0]
[1720917577622,0.50352426,144.64,144.59,6.916]
[1720917577824,0.50352426,144.64,144.6,45.0]
[1720917578025,0.50352426,144.64,144.59,51.916]
[1720917578727,0.50352426,144.64,144.6,6.9154]
[1720917578929,0.50352426,144.64,144.61,45.0]
[1720917579129,0.50352426,144.64,144.59,45.0]
[1720917579426,0.50352426,144.64,144.59,51.9159]
[1720917579826,0.50352426,144.64,144.6,6.9155]
[1720917580041,0.50352426,144.64,144.61,45.0]
[1720917580557,0.50352426,144.64,144.6,45.0]
[1720917580928,0.50352426,144.64,144.59,45.0]
[1720917582657,6.53532426,144.67,144.59,45.0]
[1720917582858,0.50352426,144.66,144.65,6.9132]
[1720917583160,0.50352426,144.66,144.65,45.0]
[1720917583359,0.50352426,144.66,144.55,25.5]
[1720917583550,0.50352426,144.66,144.6,6.9151]
[1720917583751,0.50352426,144.66,144.59,6.9161]
[1720917583939,20.50352426,144.66,144.59,6.9161]
[1720917584149,0.50352426,144.66,144.59,6.9161]
[1720917584461,20.50352426,144.66,144.59,6.9161]
[1720917585048,20.50352426,144.66,144.6,45.0]
[1720917586638,20.50352426,144.66,144.6,51.9155]
[1720917587556,20.50352426,144.66,144.6,45.0]
[1720917588641,20.50352426,144.66,144.61,6.915]
[1720917588832,0.50352426,144.66,144.62,45.0]
[1720917589034,0.50352426,144.73,144.63,1.38269469]
[1720917589272,0.50352426,144.73,144.69,6.9111]
[1720917589577,0.50352426,144.73,144.7,45.0]
[1720917590039,0.50352426,144.74,144.71,6.9103]
[1720917590369,0.50352426,144.74,144.72,51.9098]
[1720917590539,0.50352426,144.74,144.73,45.0]
[1720917592643,6.0318,144.75,144.73,45.0]
[1720917592872,6.53532426,144.75,144.73,51.9092]
[1720917593046,6.0318,144.75,144.74,6.9089]
[1720917593252,6.2318,144.79,144.74,51.9089]
[1720917593438,0.50352426,144.78,144.73,45.0]
[1720917593640,0.50352426,144.78,144.74,1.38168558]
[1720917593839,0.50352426,144.78,144.74,1.38164727]
[1720917594461,0.50352426,144.78,144.73,45.0]
[1720917595744,0.50352426,144.78,144.73,51.9092]
[1720917596070,0.50352426,144.78,144.74,6.9087]
[1720917596274,0.50352426,144.78,144.75,51.9084]
[1720917596444,0.50352426,144.78,144.75,6.9084]
[1720917596642,0.50352426,144.78,144.76,45.0]
[1720917597742,0.50352426,144.78,144.66,1.38170784]
[1720917597968,20.50352426,144.78,144.67,6.9121]
[1720917598289,6.0139,144.77,144.66,6.9127]
[1720917598576,20.50352426,144.76,144.66,6.9127]
[1720917598740,30.0,144.75,144.66,6.9127]
[1720917598948,0.50352426,144.74,144.66,6.9127]
[1720917599168,0.50352426,144.73,144.66,6.9127]
[1720917599478,0.50352426,144.73,144.61,32.561387]
[1720917599697,0.50352426,144.73,144.65,6.913]
[1720917599844,30.50352426,144.73,144.65,6.913]
[1720917600045,30.50352426,144.73,144.64,6.9132]
[1720917600247,30.50352426,144.73,144.62,1.38256811]
[1720917600467,30.50352426,144.73,144.66,6.9126]
[1720917600672,30.50352426,144.73,144.62,1.38252807]
[1720917600673,0.50352426,144.72,144.62,1.38252807]
[1720917600874,0.50352426,144.72,144.69,6.9113]
[1720917601270,0.50352426,144.75,144.69,6.9113]
[1720917601868,0.50352426,144.75,144.72,6.9098]
[1720917602170,0.50352426,144.75,144.65,1.38203806]
[1720917602395,0.50352426,144.75,144.73,6.9092]
[1720917602586,0.50352426,144.75,144.72,6.9098]
[1720917603251,0.50352426,144.75,144.65,46.38203806]
[1720917603452,0.50352426,144.75,144.7,6.9107]
[1720917603663,0.50352426,144.75,144.65,45.0]
[1720917604446,0.50352426,144.75,144.67,6.9119]
[1720917604663,0.50352426,144.75,144.68,45.0]
[1720917604889,30.0,144.74,144.68,45.0]
[1720917605089,6.0139,144.71,144.58,16.5154]
[1720917605279,0.50352426,144.7,144.63,6.9138]
[1720917606285,30.50352426,144.7,144.64,6.9137]
[1720917606803,30.50352426,144.7,144.63,6.914]
[1720917607010,30.50352426,144.7,144.64,6.9136]
[1720917607169,30.50352426,144.7,144.62,6.9142]
[1720917607680,30.50352426,144.7,144.59,0.71871126]
[1720917607887,30.50352426,144.7,144.59,45.71871126]
[1720917608103,30.50352426,144.7,144.6,0.71866155]
[1720917608268,30.50352426,144.7,144.67,6.9119]
[1720917608886,0.50352426,144.7,144.67,6.9119]
[1720917609075,0.50352426,144.7,144.68,45.0]
[1720917610104,0.50352426,144.7,144.68,51.9116]
[1720917610293,6.0139,144.71,144.7,6.9108]
[1720917610471,6.51742426,144.75,144.71,6.9102]
[1720917611197,6.51742426,144.75,144.73,6.9094]
[1720917611402,6.0139,144.75,144.73,6.9094]
[1720917611619,6.0139,144.75,144.7,45.0]
[1720917611620,0.50352426,144.74,144.7,45.0]
[1720917611774,0.50352426,144.74,144.71,45.0]
[1720917612301,0.50352426,144.74,144.68,6.9117]
[1720917612478,0.50352426,144.74,144.69,45.0]
[1720917612899,0.50352426,144.74,144.68,45.0]
[1720917613198,0.50352426,144.74,144.67,45.0]
[1720917614606,0.50352426,144.74,144.67,51.9121]
[1720917614907,30.0,144.73,144.68,6.9117]
[1720917615076,0.50352426,144.72,144.68,6.9117]
[1720917615973,0.50352426,144.74,144.68,6.9117]
[1720917616174,0.50352426,144.73,144.67,51.9122]
[1720917616881,16.3554,144.72,144.65,6.9128]
[1720917617089,30.50352426,144.71,144.65,6.9128]
[1720917617292,0.50352426,144.7,144.65,6.9128]
[1720917618193,0.50352426,144.7,144.64,6.9136]
[1720917618376,16.3554,144.68,144.52,648.7]
[1720917618579,30.50352426,144.67,144.56,6.9174]
[1720917618805,10.0,144.65,144.48,25.32]
[1720917619105,20.50352426,144.64,144.48,25.32]
[1720917619499,36.4105,144.63,144.54,6.9184]
[1720917619709,20.50352426,144.62,144.46,0.8347028]
[1720917619911,20.50352426,144.62,144.51,6.9194]
[1720917620104,20.50352426,144.62,144.46,0.8347028]
[1720917620436,30.0,144.6,144.5,6.9199]
[1720917620639,20.50352426,144.59,144.5,6.9199]
[1720917621525,46.3554,144.58,144.49,6.9208]
[1720917621832,46.3554,144.58,144.5,6.9201]
[1720917621833,0.50352426,144.57,144.5,6.9201]
[1720917622601,30.50352426,144.57,144.5,6.9201]
[1720917622900,30.50352426,144.57,144.49,6.9208]
[1720917623103,30.50352426,144.57,144.46,0.8347028]
[1720917623341,20.0,144.56,144.48,6.9213]
[1720917623534,0.50352426,144.55,144.48,6.9213]
[1720917624134,0.50352426,144.55,144.49,6.9208]
[1720917624835,30.50352426,144.55,144.47,6.9214]
[1720917625003,30.50352426,144.55,144.48,45.0]
[1720917625202,30.50352426,144.55,144.47,6.9214]
[1720917625410,30.50352426,144.55,144.48,45.0]
[1720917625610,30.50352426,144.55,144.48,51.9213]
[1720917626734,30.50352426,144.55,144.49,6.9207]
[1720917627237,30.50352426,144.55,144.48,51.9212]
[1720917628539,30.50352426,144.55,144.48,45.0]
[1720917628839,30.50352426,144.55,144.49,1.3841272]
[1720917629041,30.50352426,144.55,144.5,6.9203]
[1720917629416,30.50352426,144.55,144.48,45.0]
[1720917630022,0.50352426,144.55,144.49,1.38352163]
[1720917630329,0.50352426,144.57,144.49,1.38352163]